[Event "Late-Titled-Tuesday-Blitz-October-10-2023"]
[Site "Chess.com"]
[Date "2023.10.10"]
[Round "5"]
[White "Bauman_Guy"]
[Black "GMBenjaminBok"]
[Result "0-1"]
[WhiteElo "2854"]
[BlackElo "3016"]
[TimeControl "180+1"]
[EndTime "14:52:59 PDT"]
[Termination "GMBenjaminBok won by checkmate"]

1. e4 {[%clk 0:03:00.9]} 1... c5 {[%clk 0:02:57.6]} 2. Nf3 {[%clk 0:03:01]} 2...
d6 {[%clk 0:02:55.3]} 3. d4 {[%clk 0:03:01.2]} 3... cxd4 {[%clk 0:02:56.2]} 4.
Nxd4 {[%clk 0:03:01.7]} 4... Nf6 {[%clk 0:02:55.2]} 5. Nc3 {[%clk 0:03:02.3]}
5... a6 {[%clk 0:02:55.4]} 6. h3 {[%clk 0:03:02.8]} 6... e5 {[%clk 0:02:53.9]}
7. Nde2 {[%clk 0:03:02.8]} 7... h5 {[%clk 0:02:49.2]} 8. Bg5 {[%clk 0:03:02.7]}
8... Be6 {[%clk 0:02:47.7]} 9. Nc1 {[%clk 0:03:02.9]} 9... Nbd7 {[%clk
0:02:39.5]} 10. Be2 {[%clk 0:03:02.3]} 10... Be7 {[%clk 0:02:36.6]} 11. Nb3
{[%clk 0:03:02.2]} 11... Rc8 {[%clk 0:02:31.7]} 12. O-O {[%clk 0:03:01.6]} 12...
b5 {[%clk 0:02:21.2]} 13. a4 {[%clk 0:03:00.8]} 13... b4 {[%clk 0:02:15.5]} 14.
Nd5 {[%clk 0:03:00.5]} 14... Nxd5 {[%clk 0:01:35]} 15. exd5 {[%clk 0:03:01.4]}
15... Bf5 {[%clk 0:01:34.6]} 16. Bxe7 {[%clk 0:02:57.8]} 16... Qxe7 {[%clk
0:01:35.5]} 17. Bxa6 {[%clk 0:02:48.7]} 17... Rxc2 {[%clk 0:01:24.6]} 18. Rc1
{[%clk 0:02:39.3]} 18... Rxc1 {[%clk 0:01:18.5]} 19. Qxc1 {[%clk 0:02:39.8]}
19... O-O {[%clk 0:01:16.2]} 20. Qe3 {[%clk 0:02:29.4]} 20... Nf6 {[%clk
0:01:11.9]} 21. Rd1 {[%clk 0:02:22.4]} 21... Qc7 {[%clk 0:01:00.8]} 22. Rc1
{[%clk 0:02:04.2]} 22... Qb8 {[%clk 0:00:58.7]} 23. Bb5 {[%clk 0:01:39.5]} 23...
Nxd5 {[%clk 0:00:43.1]} 24. Qd2 {[%clk 0:01:39.3]} 24... Be6 {[%clk 0:00:42.5]}
25. Na5 {[%clk 0:01:37.7]} 25... Rc8 {[%clk 0:00:16]} 26. Nc6 {[%clk 0:01:33.1]}
26... Qb6 {[%clk 0:00:15.7]} 27. g3 {[%clk 0:01:28.6]} 27... g6 {[%clk
0:00:15.4]} 28. Qd3 {[%clk 0:01:09.4]} 28... Kg7 {[%clk 0:00:14.6]} 29. a5
{[%clk 0:01:09.5]} 29... Qb7 {[%clk 0:00:11.8]} 30. a6 {[%clk 0:01:08.7]} 30...
Qb6 {[%clk 0:00:11.6]} 31. a7 {[%clk 0:01:08.7]} 31... Nc7 {[%clk 0:00:08.7]}
32. Ba4 {[%clk 0:00:58.3]} 32... Ne8 {[%clk 0:00:04.8]} 33. Rd1 {[%clk
0:00:39.1]} 33... Bd7 {[%clk 0:00:04.3]} 34. Nb8 {[%clk 0:00:30.4]} 34... Bxa4
{[%clk 0:00:04.1]} 35. a8=Q {[%clk 0:00:25.6]} 35... Bxd1 {[%clk 0:00:04.7]} 36.
Qxd1 {[%clk 0:00:12.5]} 36... Rxb8 {[%clk 0:00:05]} 37. Qad5 {[%clk 0:00:12.9]}
37... Rc8 {[%clk 0:00:04.9]} 38. Kg2 {[%clk 0:00:11.7]} 38... Rc7 {[%clk
0:00:05]} 39. h4 {[%clk 0:00:10]} 39... Rc5 {[%clk 0:00:04.8]} 40. Qe4 {[%clk
0:00:09]} 40... Nf6 {[%clk 0:00:04.9]} 41. Qe3 {[%clk 0:00:09.6]} 41... Qc6+
{[%clk 0:00:04.6]} 42. Qdf3 {[%clk 0:00:10.3]} 42... e4 {[%clk 0:00:04.8]} 43.
Qfe2 {[%clk 0:00:09.2]} 43... Re5 {[%clk 0:00:04.4]} 44. Kg1 {[%clk 0:00:06.6]}
44... Ng4 {[%clk 0:00:04.1]} 45. Qd4 {[%clk 0:00:07]} 45... e3 {[%clk
0:00:04.4]} 46. f4 {[%clk 0:00:06.2]} 46... Qc1+ {[%clk 0:00:04.2]} 47. Qf1
{[%clk 0:00:06.8]} 47... Qc2 {[%clk 0:00:03.5]} 48. Qg2 {[%clk 0:00:01.5]} 48...
e2 {[%clk 0:00:03.9]} 49. fxe5 {[%clk 0:00:01.1]} 49... e1=Q+ {[%clk 0:00:03.9]}
50. Qf1 {[%clk 0:00:01.5]} 50... Qh2# {[%clk 0:00:04.7]} 0-1

[Event "Late-Titled-Tuesday-Blitz-October-10-2023"]
[Site "Chess.com"]
[Date "2023.10.10"]
[Round "5"]
[White "ArtemDyachuk"]
[Black "Eliwood44"]
[Result "0-1"]
[WhiteElo "2616"]
[BlackElo "2496"]
[TimeControl "180+1"]
[EndTime "14:53:01 PDT"]
[Termination "Eliwood44 won on time"]

1. e4 {[%clk 0:03:00.4]} 1... e5 {[%clk 0:02:52]} 2. Nf3 {[%clk 0:02:59.9]} 2...
Nc6 {[%clk 0:02:52.1]} 3. Bb5 {[%clk 0:02:59]} 3... Nf6 {[%clk 0:02:51.5]} 4.
O-O {[%clk 0:02:58.6]} 4... Nxe4 {[%clk 0:02:51.5]} 5. d4 {[%clk 0:02:57.5]}
5... Nd6 {[%clk 0:02:51.3]} 6. dxe5 {[%clk 0:02:57.4]} 6... Nxb5 {[%clk
0:02:44.2]} 7. a4 {[%clk 0:02:56.9]} 7... Nbd4 {[%clk 0:02:43.1]} 8. Nxd4 {[%clk
0:02:56.3]} 8... Nxd4 {[%clk 0:02:42.3]} 9. Qxd4 {[%clk 0:02:57.2]} 9... d5
{[%clk 0:02:42.6]} 10. exd6 {[%clk 0:02:57.8]} 10... Qxd6 {[%clk 0:02:41.8]} 11.
Qe4+ {[%clk 0:02:58]} 11... Qe6 {[%clk 0:02:39.4]} 12. Qd4 {[%clk 0:02:58.2]}
12... Qd6 {[%clk 0:02:39.5]} 13. Qe3+ {[%clk 0:02:58.8]} 13... Qe6 {[%clk
0:02:37.5]} 14. Qc3 {[%clk 0:02:58.5]} 14... Qd6 {[%clk 0:02:19.3]} 15. Na3
{[%clk 0:02:52.1]} 15... c6 {[%clk 0:02:17]} 16. Nc4 {[%clk 0:02:33.8]} 16...
Qb4 {[%clk 0:02:15.6]} 17. Qe3+ {[%clk 0:02:03.6]} 17... Be6 {[%clk 0:02:13.9]}
18. b3 {[%clk 0:02:03.4]} 18... Qc5 {[%clk 0:02:09.1]} 19. Qe2 {[%clk
0:01:55.6]} 19... Be7 {[%clk 0:02:04.1]} 20. Ba3 {[%clk 0:01:44.5]} 20... Qg5
{[%clk 0:02:02.5]} 21. f4 {[%clk 0:01:06.8]} 21... Qf6 {[%clk 0:01:56.8]} 22. f5
{[%clk 0:00:52]} 22... Bxc4 {[%clk 0:01:55]} 23. bxc4 {[%clk 0:00:48.1]} 23...
Kf8 {[%clk 0:01:54.7]} 24. Qf3 {[%clk 0:00:30.3]} 24... Re8 {[%clk 0:01:43.9]}
25. Rae1 {[%clk 0:00:27.3]} 25... Kg8 {[%clk 0:01:34.1]} 26. Qe3 {[%clk
0:00:22]} 26... Kf8 {[%clk 0:01:15.1]} 27. Bxe7+ {[%clk 0:00:13.1]} 27... Rxe7
{[%clk 0:01:11.5]} 28. Qxa7 {[%clk 0:00:12.9]} 28... g6 {[%clk 0:01:06.3]} 29.
fxg6 {[%clk 0:00:09.7]} 29... Rxe1 {[%clk 0:01:03.6]} 30. g7+ {[%clk 0:00:05.9]}
30... Kxg7 {[%clk 0:01:00]} 31. Rxe1 {[%clk 0:00:05.5]} 31... Rd8 {[%clk
0:00:59.8]} 32. Qe3 {[%clk 0:00:04.7]} 32... Qd4 {[%clk 0:00:58.4]} 33. h3
{[%clk 0:00:02.9]} 33... Qxe3+ {[%clk 0:00:58.2]} 34. Rxe3 {[%clk 0:00:03.8]}
34... Rd4 {[%clk 0:00:58.4]} 35. Rc3 {[%clk 0:00:03.1]} 35... Kf6 {[%clk
0:00:57.1]} 36. Kf2 {[%clk 0:00:03]} 36... Ke5 {[%clk 0:00:57.1]} 37. Ke3 {[%clk
0:00:03.4]} 37... f5 {[%clk 0:00:54.7]} 38. Rb3 {[%clk 0:00:03.1]} 38... Rxc4
{[%clk 0:00:51.2]} 39. Rxb7 {[%clk 0:00:02.5]} 39... Rxc2 {[%clk 0:00:49.8]} 40.
Kf3 {[%clk 0:00:02.5]} 40... Rc3+ {[%clk 0:00:49.1]} 41. Kf2 {[%clk 0:00:02.7]}
41... h5 {[%clk 0:00:48.3]} 42. Rh7 {[%clk 0:00:01.9]} 42... Rc2+ {[%clk
0:00:44.1]} 43. Kg3 {[%clk 0:00:01.6]} 43... Ra2 {[%clk 0:00:44.4]} 44. Rxh5
{[%clk 0:00:01.3]} 44... Rxa4 {[%clk 0:00:44.4]} 45. Kf3 {[%clk 0:00:01.8]}
45... Ra3+ {[%clk 0:00:44]} 46. Kf2 {[%clk 0:00:02.2]} 46... Ke4 {[%clk
0:00:41.5]} 47. Rh6 {[%clk 0:00:02.3]} 47... c5 {[%clk 0:00:40.8]} 48. Re6+
{[%clk 0:00:02.2]} 48... Kd5 {[%clk 0:00:39.8]} 49. Re2 {[%clk 0:00:01.8]} 49...
c4 {[%clk 0:00:39.8]} 50. h4 {[%clk 0:00:02.3]} 50... c3 {[%clk 0:00:39.1]} 51.
h5 {[%clk 0:00:02.5]} 51... Ra6 {[%clk 0:00:37.7]} 52. Kg3 {[%clk 0:00:01.6]}
52... Kd4 {[%clk 0:00:36.8]} 53. Kh4 {[%clk 0:00:01.6]} 53... Kd3 {[%clk
0:00:36.8]} 54. Re1 {[%clk 0:00:02]} 54... Kd2 {[%clk 0:00:35.5]} 55. Rf1 {[%clk
0:00:01.8]} 55... c2 {[%clk 0:00:34.7]} 56. Kg5 {[%clk 0:00:02.2]} 56... f4
{[%clk 0:00:30.2]} 57. h6 {[%clk 0:00:01.2]} 57... Re6 {[%clk 0:00:21]} 0-1

[Event "Late-Titled-Tuesday-Blitz-October-10-2023"]
[Site "Chess.com"]
[Date "2023.10.10"]
[Round "5"]
[White "kuli4ik"]
[Black "ameetghasi100"]
[Result "0-1"]
[WhiteElo "2922"]
[BlackElo "2741"]
[TimeControl "180+1"]
[EndTime "14:53:02 PDT"]
[Termination "ameetghasi100 won by resignation"]

1. Nf3 {[%clk 0:02:54.4]} 1... Nf6 {[%clk 0:02:59.9]} 2. c4 {[%clk 0:02:52.9]}
2... g6 {[%clk 0:03:00.3]} 3. b3 {[%clk 0:02:52.9]} 3... Bg7 {[%clk 0:03:01.2]}
4. Bb2 {[%clk 0:02:53.6]} 4... O-O {[%clk 0:03:01.5]} 5. g3 {[%clk 0:02:54.2]}
5... c6 {[%clk 0:03:01.9]} 6. Bg2 {[%clk 0:02:54.1]} 6... d5 {[%clk 0:03:00.9]}
7. O-O {[%clk 0:02:54]} 7... a5 {[%clk 0:03:00.4]} 8. Nc3 {[%clk 0:02:52.3]}
8... Bg4 {[%clk 0:02:51.5]} 9. Rc1 {[%clk 0:02:49.4]} 9... Na6 {[%clk
0:02:39.6]} 10. Ne5 {[%clk 0:02:42.4]} 10... Bf5 {[%clk 0:02:17.8]} 11. cxd5
{[%clk 0:02:42.1]} 11... cxd5 {[%clk 0:02:16.2]} 12. Nb5 {[%clk 0:02:36.6]}
12... Ne4 {[%clk 0:01:53.6]} 13. d4 {[%clk 0:01:48.3]} 13... Nb4 {[%clk
0:01:22]} 14. a3 {[%clk 0:01:46.5]} 14... Na2 {[%clk 0:01:21.4]} 15. Ra1 {[%clk
0:00:58.5]} 15... Qb6 {[%clk 0:01:19.1]} 16. a4 {[%clk 0:00:54.8]} 16... Nb4
{[%clk 0:01:18.4]} 17. Rc1 {[%clk 0:00:46.9]} 17... Rac8 {[%clk 0:01:14.3]} 18.
e3 {[%clk 0:00:24.9]} 18... Nd6 {[%clk 0:01:10.1]} 19. Nc3 {[%clk 0:00:21]}
19... Ne4 {[%clk 0:00:51.9]} 20. Nxe4 {[%clk 0:00:20.7]} 20... Bxe4 {[%clk
0:00:52]} 21. Qd2 {[%clk 0:00:17.2]} 21... Bxe5 {[%clk 0:00:39.3]} 22. dxe5
{[%clk 0:00:18.1]} 22... Nd3 {[%clk 0:00:39.3]} 23. Rxc8 {[%clk 0:00:16]} 23...
Rxc8 {[%clk 0:00:39.6]} 24. Bd4 {[%clk 0:00:15.9]} 24... Qb4 {[%clk 0:00:33.9]}
25. Qxb4 {[%clk 0:00:13.2]} 25... axb4 {[%clk 0:00:34.8]} 26. f3 {[%clk
0:00:13.7]} 26... Bf5 {[%clk 0:00:35]} 27. Rd1 {[%clk 0:00:13]} 27... Nc1 {[%clk
0:00:23.6]} 28. g4 {[%clk 0:00:05.9]} 28... Be6 {[%clk 0:00:20.1]} 29. Kf2
{[%clk 0:00:06.2]} 29... Nxb3 {[%clk 0:00:20]} 30. Rb1 {[%clk 0:00:06.4]} 30...
Rc2+ {[%clk 0:00:17.6]} 31. Kg3 {[%clk 0:00:06]} 31... Nxd4 {[%clk 0:00:18]} 32.
exd4 {[%clk 0:00:06.9]} 32... Rc4 {[%clk 0:00:18.5]} 33. Kf2 {[%clk 0:00:06.1]}
33... Rxd4 {[%clk 0:00:18.7]} 34. Ke3 {[%clk 0:00:06.6]} 34... Rc4 {[%clk
0:00:19.2]} 35. Bf1 {[%clk 0:00:06.6]} 35... Rc3+ {[%clk 0:00:18.4]} 36. Kd4
{[%clk 0:00:04.5]} 36... Rxf3 {[%clk 0:00:17.2]} 37. Bd3 {[%clk 0:00:04.7]}
37... Rf4+ {[%clk 0:00:15.6]} 38. Kc5 {[%clk 0:00:05]} 38... Rxg4 {[%clk
0:00:14.5]} 39. Kb6 {[%clk 0:00:04.2]} 39... b3 {[%clk 0:00:13]} 40. Rxb3 {[%clk
0:00:03.5]} 40... Rxa4 {[%clk 0:00:13.3]} 41. Kxb7 {[%clk 0:00:03.1]} 41... d4
{[%clk 0:00:11.3]} 42. Rb2 {[%clk 0:00:02.5]} 42... Ra3 {[%clk 0:00:11.3]} 43.
Bc2 {[%clk 0:00:02.5]} 43... d3 {[%clk 0:00:11]} 44. Bd1 {[%clk 0:00:03.1]}
44... Ra5 {[%clk 0:00:11.4]} 45. Kc7 {[%clk 0:00:02.9]} 45... Rxe5 {[%clk
0:00:11.7]} 46. Kd8 {[%clk 0:00:03.2]} 46... Bf5 {[%clk 0:00:11.6]} 47. Rd2
{[%clk 0:00:03.6]} 47... Kg7 {[%clk 0:00:12.1]} 48. Kc7 {[%clk 0:00:03.9]} 48...
Re1 {[%clk 0:00:12.6]} 49. Kc6 {[%clk 0:00:03.2]} 49... e5 {[%clk 0:00:13.1]}
50. Kc5 {[%clk 0:00:03.4]} 50... e4 {[%clk 0:00:13.7]} 0-1

[Event "Late-Titled-Tuesday-Blitz-October-10-2023"]
[Site "Chess.com"]
[Date "2023.10.10"]
[Round "5"]
[White "baki83"]
[Black "karwowskikacper"]
[Result "1-0"]
[WhiteElo "2821"]
[BlackElo "2553"]
[TimeControl "180+1"]
[EndTime "14:53:02 PDT"]
[Termination "baki83 won on time"]

1. Nf3 {[%clk 0:03:00.9]} 1... Nf6 {[%clk 0:02:53]} 2. b3 {[%clk 0:03:00.5]}
2... d5 {[%clk 0:02:51.5]} 3. Bb2 {[%clk 0:03:01]} 3... Bf5 {[%clk 0:02:51.5]}
4. e3 {[%clk 0:03:00.9]} 4... e6 {[%clk 0:02:51.6]} 5. Be2 {[%clk 0:03:01.4]}
5... h6 {[%clk 0:02:51.5]} 6. O-O {[%clk 0:03:00.9]} 6... Be7 {[%clk 0:02:51.7]}
7. d3 {[%clk 0:03:00.9]} 7... O-O {[%clk 0:02:51.9]} 8. Nbd2 {[%clk 0:03:00.4]}
8... Bh7 {[%clk 0:02:50.8]} 9. Ne5 {[%clk 0:02:51.3]} 9... Nbd7 {[%clk
0:02:46.8]} 10. f4 {[%clk 0:02:51.2]} 10... Nxe5 {[%clk 0:02:40.6]} 11. fxe5
{[%clk 0:02:51.1]} 11... Nd7 {[%clk 0:02:41.1]} 12. Qe1 {[%clk 0:02:44.7]} 12...
f6 {[%clk 0:02:36.5]} 13. exf6 {[%clk 0:02:16.9]} 13... Bxf6 {[%clk 0:02:37.4]}
14. Bxf6 {[%clk 0:02:16.6]} 14... Rxf6 {[%clk 0:02:36.3]} 15. Qg3 {[%clk
0:02:15.3]} 15... e5 {[%clk 0:02:24.6]} 16. Bg4 {[%clk 0:02:13.1]} 16... Rxf1+
{[%clk 0:02:11.5]} 17. Rxf1 {[%clk 0:02:12.2]} 17... Nf6 {[%clk 0:02:12.4]} 18.
Be6+ {[%clk 0:02:06.4]} 18... Kh8 {[%clk 0:02:12.6]} 19. Bf5 {[%clk 0:01:30.2]}
19... Qe7 {[%clk 0:02:06.8]} 20. Bxh7 {[%clk 0:01:29.6]} 20... Kxh7 {[%clk
0:02:07.7]} 21. Rf5 {[%clk 0:01:28.7]} 21... Re8 {[%clk 0:02:02.5]} 22. Nf3
{[%clk 0:01:27.5]} 22... e4 {[%clk 0:01:58.1]} 23. Ne5 {[%clk 0:01:23.1]} 23...
exd3 {[%clk 0:01:37.4]} 24. cxd3 {[%clk 0:01:24]} 24... Qe6 {[%clk 0:01:15.7]}
25. Qg6+ {[%clk 0:01:19.5]} 25... Kg8 {[%clk 0:01:15.8]} 26. d4 {[%clk
0:01:06.5]} 26... Rf8 {[%clk 0:00:58.5]} 27. Rf4 {[%clk 0:00:44]} 27... Qa6
{[%clk 0:00:38.9]} 28. h3 {[%clk 0:00:20.4]} 28... Qxa2 {[%clk 0:00:35.7]} 29.
Kh2 {[%clk 0:00:20.3]} 29... Qxb3 {[%clk 0:00:31.9]} 30. Rf3 {[%clk 0:00:17.3]}
30... Qb6 {[%clk 0:00:24.2]} 31. Rg3 {[%clk 0:00:10.6]} 31... Ne8 {[%clk
0:00:18.5]} 32. Qg4 {[%clk 0:00:07.3]} 32... Qd6 {[%clk 0:00:13.1]} 33. Qc8
{[%clk 0:00:07]} 33... Nf6 {[%clk 0:00:10.4]} 34. Qxb7 {[%clk 0:00:06.9]} 34...
Ne4 {[%clk 0:00:09.8]} 35. Rg4 {[%clk 0:00:06.8]} 35... Re8 {[%clk 0:00:09.5]}
36. Qb3 {[%clk 0:00:06]} 36... Rxe5 {[%clk 0:00:09.1]} 37. dxe5 {[%clk
0:00:05.8]} 37... Qxe5+ {[%clk 0:00:10]} 38. Kg1 {[%clk 0:00:06.4]} 38... Qa1+
{[%clk 0:00:09.9]} 39. Kh2 {[%clk 0:00:07]} 39... Qe5+ {[%clk 0:00:10.4]} 40. g3
{[%clk 0:00:07.6]} 40... c6 {[%clk 0:00:09.2]} 41. Kg2 {[%clk 0:00:07.4]} 41...
Nf6 {[%clk 0:00:06.4]} 42. Rf4 {[%clk 0:00:07]} 42... Kh7 {[%clk 0:00:04.6]} 43.
Qc2+ {[%clk 0:00:06.7]} 43... Kg8 {[%clk 0:00:04.1]} 44. Qd3 {[%clk 0:00:06.7]}
44... Qb2+ {[%clk 0:00:04.1]} 45. Rf2 {[%clk 0:00:06.9]} 45... Qe5 {[%clk
0:00:04.4]} 46. Qd4 {[%clk 0:00:06.3]} 46... Qe6 {[%clk 0:00:02.9]} 47. Rc2
{[%clk 0:00:06.2]} 1-0

[Event "Late-Titled-Tuesday-Blitz-October-10-2023"]
[Site "Chess.com"]
[Date "2023.10.10"]
[Round "5"]
[White "BardArtem"]
[Black "KorolDimitriy75"]
[Result "1-0"]
[WhiteElo "2783"]
[BlackElo "2414"]
[TimeControl "180+1"]
[EndTime "14:53:05 PDT"]
[Termination "BardArtem won on time"]

1. e4 {[%clk 0:03:00.9]} 1... c5 {[%clk 0:03:00]} 2. c3 {[%clk 0:03:00.6]} 2...
d5 {[%clk 0:03:00.1]} 3. exd5 {[%clk 0:03:01.5]} 3... Qxd5 {[%clk 0:03:00.5]} 4.
d4 {[%clk 0:03:02.1]} 4... cxd4 {[%clk 0:03:01.4]} 5. cxd4 {[%clk 0:03:03]} 5...
Nc6 {[%clk 0:03:01.7]} 6. Nf3 {[%clk 0:03:02.6]} 6... e5 {[%clk 0:03:02]} 7. Nc3
{[%clk 0:03:02.9]} 7... Bb4 {[%clk 0:03:02]} 8. Bd2 {[%clk 0:03:03.4]} 8... Bxc3
{[%clk 0:03:02.3]} 9. Bxc3 {[%clk 0:03:04.3]} 9... e4 {[%clk 0:03:02.7]} 10. Ne5
{[%clk 0:03:04.9]} 10... Nxe5 {[%clk 0:03:03.3]} 11. dxe5 {[%clk 0:03:05.3]}
11... Ne7 {[%clk 0:03:04.1]} 12. Qa4+ {[%clk 0:03:05.1]} 12... Bd7 {[%clk
0:03:04]} 13. Qa3 {[%clk 0:03:02.5]} 13... e3 {[%clk 0:03:04.1]} 14. f3 {[%clk
0:02:28]} 14... Rc8 {[%clk 0:03:02.9]} 15. Rd1 {[%clk 0:02:26.8]} 15... Qc5
{[%clk 0:03:02.4]} 16. Qxc5 {[%clk 0:02:25.4]} 16... Rxc5 {[%clk 0:03:03.3]} 17.
Bd4 {[%clk 0:02:12.2]} 17... Rc2 {[%clk 0:02:33.3]} 18. Bxe3 {[%clk 0:01:52.8]}
18... Rxb2 {[%clk 0:02:15.8]} 19. Rd2 {[%clk 0:01:51]} 19... Rb1+ {[%clk
0:01:25]} 20. Rd1 {[%clk 0:01:35.4]} 20... Rb2 {[%clk 0:01:24.7]} 21. Bxa7
{[%clk 0:01:04]} 21... Rxa2 {[%clk 0:01:20]} 22. Bc5 {[%clk 0:00:52.2]} 22...
Bc6 {[%clk 0:01:09.1]} 23. Bf2 {[%clk 0:00:41.1]} 23... O-O {[%clk 0:00:45]} 24.
Bc4 {[%clk 0:00:40]} 24... Rc2 {[%clk 0:00:43.8]} 25. Bd3 {[%clk 0:00:37.4]}
25... Ra2 {[%clk 0:00:39.6]} 26. O-O {[%clk 0:00:37.1]} 26... Ng6 {[%clk
0:00:26.9]} 27. e6 {[%clk 0:00:32.6]} 27... fxe6 {[%clk 0:00:19.7]} 28. Bc4
{[%clk 0:00:33]} 28... Rc2 {[%clk 0:00:18.9]} 29. Bxe6+ {[%clk 0:00:28.3]} 29...
Kh8 {[%clk 0:00:19.1]} 30. Rc1 {[%clk 0:00:19.4]} 30... Rxc1 {[%clk 0:00:16.4]}
31. Rxc1 {[%clk 0:00:20.3]} 31... Nf4 {[%clk 0:00:16.6]} 32. Bc4 {[%clk
0:00:20.1]} 32... Rd8 {[%clk 0:00:13.6]} 33. Be3 {[%clk 0:00:12.8]} 33... Nd5
{[%clk 0:00:10.7]} 34. Rd1 {[%clk 0:00:12]} 34... h6 {[%clk 0:00:08.2]} 35. Bc1
{[%clk 0:00:06.7]} 35... Rd7 {[%clk 0:00:07.7]} 36. Bb2 {[%clk 0:00:06.6]} 36...
Nb6 {[%clk 0:00:04.2]} 37. Rxd7 {[%clk 0:00:06.9]} 37... Bxd7 {[%clk 0:00:03.8]}
38. Bb3 {[%clk 0:00:07.3]} 38... Bc6 {[%clk 0:00:03.8]} 39. Kf2 {[%clk
0:00:07.2]} 39... Nd5 {[%clk 0:00:03.8]} 40. g3 {[%clk 0:00:05.4]} 40... Kh7
{[%clk 0:00:03.5]} 41. f4 {[%clk 0:00:06]} 41... Nf6 {[%clk 0:00:03.3]} 42. Ke3
{[%clk 0:00:05.6]} 42... Ng4+ {[%clk 0:00:03.2]} 43. Kd4 {[%clk 0:00:06.2]}
43... Nxh2 {[%clk 0:00:03.6]} 44. Bc2+ {[%clk 0:00:03.6]} 44... g6 {[%clk
0:00:03.2]} 45. Ke5 {[%clk 0:00:04]} 45... Ng4+ {[%clk 0:00:02.4]} 46. Kd6
{[%clk 0:00:04.2]} 46... Ne3 {[%clk 0:00:02.3]} 47. Bd3 {[%clk 0:00:02]} 47...
h5 {[%clk 0:00:01.5]} 48. Ke7 {[%clk 0:00:01.8]} 48... Nf5+ {[%clk 0:00:01.3]}
49. Kf6 {[%clk 0:00:01.8]} 49... Nxg3 {[%clk 0:00:01.1]} 50. Bxg6+ {[%clk
0:00:01.6]} 1-0

[Event "Late-Titled-Tuesday-Blitz-October-10-2023"]
[Site "Chess.com"]
[Date "2023.10.10"]
[Round "5"]
[White "pinguino120"]
[Black "Inepton_Fermion"]
[Result "1-0"]
[WhiteElo "2236"]
[BlackElo "2392"]
[TimeControl "180+1"]
[EndTime "14:53:10 PDT"]
[Termination "pinguino120 won on time"]

1. e4 {[%clk 0:03:00.9]} 1... c5 {[%clk 0:02:56.2]} 2. Nf3 {[%clk 0:02:57.8]}
2... e6 {[%clk 0:02:55]} 3. g3 {[%clk 0:02:53.8]} 3... Nc6 {[%clk 0:02:53.4]} 4.
Bg2 {[%clk 0:02:49.9]} 4... d5 {[%clk 0:02:53.4]} 5. exd5 {[%clk 0:02:48.6]}
5... exd5 {[%clk 0:02:54.3]} 6. d4 {[%clk 0:02:48.1]} 6... Nf6 {[%clk
0:02:54.1]} 7. O-O {[%clk 0:02:46.8]} 7... cxd4 {[%clk 0:02:49.2]} 8. Nxd4
{[%clk 0:02:44.6]} 8... Be7 {[%clk 0:02:49.8]} 9. c4 {[%clk 0:02:41.5]} 9...
Nxd4 {[%clk 0:02:31.1]} 10. Qxd4 {[%clk 0:02:39.7]} 10... dxc4 {[%clk
0:02:19.8]} 11. Qxd8+ {[%clk 0:02:31.1]} 11... Bxd8 {[%clk 0:02:19.3]} 12. Re1+
{[%clk 0:02:30.1]} 12... Be7 {[%clk 0:01:52.9]} 13. Na3 {[%clk 0:02:23.1]} 13...
Be6 {[%clk 0:01:35.7]} 14. Bxb7 {[%clk 0:02:20.3]} 14... Rb8 {[%clk 0:01:36.4]}
15. Bc6+ {[%clk 0:02:16.3]} 15... Kf8 {[%clk 0:01:35.9]} 16. Nb5 {[%clk
0:01:56.3]} 16... Bc5 {[%clk 0:01:18.1]} 17. Bf4 {[%clk 0:01:54.3]} 17... Rb6
{[%clk 0:01:09.6]} 18. Nxa7 {[%clk 0:01:36.1]} 18... Ra6 {[%clk 0:01:00.1]} 19.
Red1 {[%clk 0:01:29.1]} 19... Ke7 {[%clk 0:00:54.1]} 20. b4 {[%clk 0:01:02.3]}
20... cxb3 {[%clk 0:00:44.6]} 21. axb3 {[%clk 0:01:02]} 21... Rxa7 {[%clk
0:00:44]} 22. Rxa7+ {[%clk 0:00:58.5]} 22... Bxa7 {[%clk 0:00:44.9]} 23. Bd6+
{[%clk 0:00:58.5]} 23... Kd8 {[%clk 0:00:41.8]} 24. Bb8+ {[%clk 0:00:50.6]}
24... Kc8 {[%clk 0:00:34]} 25. Bxa7 {[%clk 0:00:48.3]} 25... Kc7 {[%clk
0:00:21.2]} 26. Rc1 {[%clk 0:00:38.3]} 26... Kd6 {[%clk 0:00:17.6]} 27. b4
{[%clk 0:00:34.1]} 27... Rc8 {[%clk 0:00:15.2]} 28. b5 {[%clk 0:00:34]} 28...
Bd5 {[%clk 0:00:04.2]} 29. Rd1 {[%clk 0:00:30.8]} 29... Ke6 {[%clk 0:00:04.6]}
30. Bb7 {[%clk 0:00:27.4]} 30... Bxb7 {[%clk 0:00:04.3]} 31. b6 {[%clk
0:00:22.7]} 31... Bd5 {[%clk 0:00:03]} 32. Re1+ {[%clk 0:00:22.2]} 32... Kd7
{[%clk 0:00:02.6]} 33. Rb1 {[%clk 0:00:22.1]} 33... Bb7 {[%clk 0:00:02.5]} 34.
Rd1+ {[%clk 0:00:21.8]} 34... Nd5 {[%clk 0:00:02.9]} 35. Kf1 {[%clk 0:00:21.1]}
35... Rc6 {[%clk 0:00:02.7]} 36. Rxd5+ {[%clk 0:00:20.9]} 36... Rd6 {[%clk
0:00:02.4]} 37. Rxd6+ {[%clk 0:00:14]} 37... Kxd6 {[%clk 0:00:03.3]} 38. Bb8+
{[%clk 0:00:13.1]} 38... Kc5 {[%clk 0:00:02.5]} 39. Bc7 {[%clk 0:00:14]} 39...
f5 {[%clk 0:00:02.1]} 40. Ke2 {[%clk 0:00:14.4]} 40... g5 {[%clk 0:00:02.1]} 41.
Ke3 {[%clk 0:00:14.8]} 41... g4 {[%clk 0:00:01.9]} 42. Kf4 {[%clk 0:00:14.1]}
42... Bc8 {[%clk 0:00:01.7]} 43. Kg5 {[%clk 0:00:13.8]} 43... Kc6 {[%clk
0:00:01.4]} 44. Kh6 {[%clk 0:00:14.1]} 44... Be6 {[%clk 0:00:01.6]} 45. Kxh7
{[%clk 0:00:14.5]} 45... Bc8 {[%clk 0:00:02.3]} 46. Kh6 {[%clk 0:00:15]} 46...
Bd7 {[%clk 0:00:02.6]} 47. Kg5 {[%clk 0:00:15.9]} 47... Bc8 {[%clk 0:00:02.8]}
48. Kh4 {[%clk 0:00:15.8]} 48... Kd5 {[%clk 0:00:02.3]} 49. Kg5 {[%clk
0:00:16.2]} 49... Ke4 {[%clk 0:00:02.4]} 50. Kh4 {[%clk 0:00:16.6]} 50... Bb7
{[%clk 0:00:02.7]} 51. h3 {[%clk 0:00:17.1]} 51... gxh3 {[%clk 0:00:02.6]} 52.
Kxh3 {[%clk 0:00:18]} 52... Kf3 {[%clk 0:00:03.2]} 53. g4 {[%clk 0:00:17.7]}
53... fxg4+ {[%clk 0:00:03.2]} 54. Kh4 {[%clk 0:00:17.8]} 54... Bc6 {[%clk
0:00:03.4]} 55. Bg3 {[%clk 0:00:18.5]} 55... Bb7 {[%clk 0:00:03.5]} 56. Kg5
{[%clk 0:00:19.4]} 56... Bc8 {[%clk 0:00:03.4]} 57. Kf6 {[%clk 0:00:20.3]} 57...
Bb7 {[%clk 0:00:02.5]} 58. Ke7 {[%clk 0:00:21.2]} 58... Bd5 {[%clk 0:00:01.3]}
59. Kd8 {[%clk 0:00:21.6]} 59... Ke4 {[%clk 0:00:01.1]} 60. Kc7 {[%clk
0:00:22.2]} 60... Kf5 {[%clk 0:00:01.3]} 61. b7 {[%clk 0:00:23.1]} 61... Bxb7
{[%clk 0:00:01.3]} 62. Kxb7 {[%clk 0:00:22.3]} 62... Ke4 {[%clk 0:00:01.9]} 63.
Kc6 {[%clk 0:00:23.2]} 1-0